Cogmind - Beta 11.1 @@@ ROGUE MODE // 2022.12.06 @ 15:47:05 Player: Pitt Result: Destroyed by S-10 Pest with Light Assault Rifle Performance ------------- Evolutions (2) 1000 Regions Visited (4) 800 Robots Destroyed (22) 110 Value Destroyed (443) 443 Prototype IDs (0) 0 Alien Tech Used (0) 0 Bonus (0) 0 TOTAL SCORE: 2353 Bonus ------- None Cogmind --------- Core Integrity 0/550 Matter 201/300 Energy 98/100 System Corruption 0% Temperature Cool (0) Movement Core (50) Location -8/Materials Parts ------- > --- POWER (2) -------- (None) > --- PROPULSION (4) --- (None) > --- UTILITY (3) ------ (None) > --- WEAPON (2) ------- (None) > --- INVENTORY (5) ---- Light Nuclear Core Small Storage Unit Advanced Weight Redist. System Reflective Plating Improved Datajack Peak State ------------ > --- POWER ------------ Improved Ion Engine > --- PROPULSION ------- Aluminum Leg Aluminum Leg Aluminum Leg Aluminum Leg > --- UTILITY ---------- Small Storage Unit Improved Terrain Scanner > --- WEAPON ----------- Light EM Pulse Cannon Grenade Launcher > --- INVENTORY -------- Wheel Wheel Wheel Seismic Detector Medium Laser Assault Rifle Light Assault Rifle Mining Laser [Rating: 13] Favorites ----------- Power Ion Engine Engine Ion Engine Power Core Light Nuclear Core Propulsion Aluminum Leg Leg Aluminum Leg Wheel Wheel Utility Small Storage Unit Device Improved Terrain Scanner Storage Small Storage Unit Protection Reflective Plating Weapon Medium Laser Energy Gun Medium Laser Energy Cannon Light EM Pulse Cannon Ballistic Gun Assault Rifle Launcher Grenade Launcher Special Weapon Mining Laser Build | -11 -10 -9 -9 -8 ------- Run | Scr Mat Mat Min Mat Slots Evolved 4 | . . 2 . 2 Power 1 | . . . . 1 Propulsion 2 | . . 2 . . Utility 1 | . . . . 1 Weapon . | . . . . . Parts Attached 34 | 7 1 6 12 8 Power 4 | 1 . 1 . 2 Engine 3 | 1 . 1 . 1 Core 1 | . . . . 1 Reactor . | . . . . . Propulsion 12 | 2 . 3 4 3 Treads . | . . . . . Leg 8 | 2 . 3 . 3 Wheel 4 | . . . 4 . Hover . | . . . . . Flight . | . . . . . Utility 4 | 2 . . 1 1 Device 2 | 1 . . 1 . Storage 1 | 1 . . . . Processor . | . . . . . Hackware . | . . . . . Protection 1 | . . . . 1 Artifact . | . . . . . Weapon 14 | 2 1 2 7 2 Energy Gun 2 | 1 . . 1 . Energy Cannon 2 | . . 1 1 . Ballistic Gun 7 | 1 1 . 3 2 Ballistic Cannon . | . . . . . Launcher 2 | . . 1 1 . Special Weapon 1 | . . . 1 . Impact Weapon . | . . . . . Slashing Weapon . | . . . . . Piercing Weapon . | . . . . . Special Melee Weapon . | . . . . . Unidentified Prototypes . | . . . . . Parts Lost 17 | . . . 10 7 Power 2 | . . . 1 1 Propulsion 7 | . . . 4 3 Utility 2 | . . . 1 1 Weapon 6 | . . . 4 2 Highest Loss Streak 10 | . . . 10 7 To Critical Strikes . | . . . . . Average Slot Usage (%) 68 | . 100 92 55 17 Engine 8 | . 14 11 4 1 Leg 20 | . 28 36 4 2 Wheel 3 | . . . 16 . Device 9 | . 14 11 7 3 Storage 9 | . 14 11 11 3 Energy Gun 7 | . 14 9 1 2 Ballistic Gun 8 | . 14 9 8 1 Naked Turns 196 | . . . . 196 Heaviest Build 20 | 15 15 20 20 16 Greatest Support 40 | 20 20 40 40 30 Greatest Overweight (x) 3 | . . . 2 3 Average Overweight (x) . | . . . . . Largest Inventory Capacity 8 | 8 8 8 8 8 Average Capacity 7 | 7 8 8 8 6 Most Carried 8 | 7 8 8 8 5 Average Carried 5 | 2 7 7 6 2 Final Capacity 8 | 8 8 8 8 5 Final Carried 8 | 7 8 8 5 5 Class Distribution -------------------- 85% | Mutant 14% | Scavenger-Mutant Dominant Class ---------------- Mutant | -10/Materials Mutant | -9/Materials Mutant | -9/Mines Mutant | -8/Materials Resources | -11 -10 -9 -9 -8 ----------- Run | Scr Mat Mat Min Mat Matter Collected 572 | 333 6 143 32 58 Remotely . | . . . . . Salvage Created 586 | 178 49 217 29 113 Parts 42 | 16 1 21 2 2 Haulers Intercepted . | . . . . . Recyclers Shooed 2 | . . 1 . 1 Parts Field Recycled . | . . . . . Retrieved Matter . | . . . . . Parts Self-Destructed . | . . . . . Prevented . | . . . . . Kills | -11 -10 -9 -9 -8 ------- Run | Scr Mat Mat Min Mat Combat Hostiles Destroyed 10 | . 1 6 1 2 Guns 6 | . 1 3 . 2 Cannons 1 | . . . 1 . AOE 3 | . . 3 . . Classes Destroyed 9 | 2 2 4 1 . Worker 3 | . 1 1 1 . Builder 2 | . . 2 . . Tunneler 6 | 6 . . . . Recycler 1 | 1 . . . . Watcher 1 | . . 1 . . Grunt 7 | . 1 4 . 2 Duelist 1 | . . 1 . . Sentry 1 | . . 1 . . Assembled 1 | . . . 1 . Best Kill Streak 5 | 3 1 5 1 1 Combat Bots Only 3 | . 1 3 1 1 Max Kills in Single Turn 3 | 1 1 3 1 1 Gunslinging . | . . . . . Exploded 1 | . . 1 . . Melee . | . . . . . Uniques/NPCs Destroyed . | . . . . . Combat | -11 -10 -9 -9 -8 -------- Run | Scr Mat Mat Min Mat Damage Taken 2125 | . 64 538 528 995 Core 770 | . 24 62 130 554 Absorbed by Shields . | . . . . . Core Remaining (%) 80 | 100 90 . 52 . Volleys Fired 85 | 21 10 21 11 22 Largest 2 | 2 2 2 2 2 Hottest 100 | 70 70 70 100 70 Shots Fired 152 | 42 20 39 12 39 Gun 143 | 42 20 36 6 39 Cannon 4 | . . . 4 . Launcher 4 | . . 3 1 . Special 1 | . . . 1 . Kinetic 76 | 21 10 18 5 22 Thermal 68 | 21 10 18 2 17 Explosive 4 | . . 3 1 . Electromagnetic 4 | . . . 4 . Robot Hit Streak 9 | 7 6 9 2 8 Robot Miss Streak 2 | 1 2 2 2 2 Penetration Max . | . . . . . Secondary Targets 1 | . . . . 1 Max Gunslinging Chain 1 | . . . . 1 Shots Hit Robots 99 | 29 12 27 5 26 Core Hits 42 | 8 3 18 3 10 Critical Kills . | . . . . . Critical Parts Destroyed 1 | 1 . . . . Critical Strikes 7 | 2 2 2 . 1 Burn 6 | 1 2 2 . 1 Destroy 1 | 1 . . . . Melee Attacks . | . . . . . Impact . | . . . . . Slashing . | . . . . . Piercing . | . . . . . Sneak Attacks . | . . . . . Combat Hostiles . | . . . . . Follow-up Attacks . | . . . . . Damage Inflicted 1558 | 364 162 622 91 319 Guns 1176 | 364 162 311 28 311 Cannons 57 | . . . 57 . Explosions 311 | . . 311 . . Melee . | . . . . . Ramming 14 | . . . 6 8 Kinetic 651 | 226 75 160 28 162 Thermal 525 | 138 87 151 . 149 Explosive 311 | . . 311 . . Electromagnetic 57 | . . . 57 . Impact . | . . . . . Slashing . | . . . . . Piercing . | . . . . . Highest Corruption 13 | . . . 13 . Average Corruption 12 | . . . 12 . Corruption Purged . | . . . . . Corruption Blocked . | . . . . . Effects 9 | . . . 9 . Message Errors 2 | . . . 2 . Matter Fused 1 | . . . 1 . Heat Flow Errors 1 | . . . 1 . Energy Discharges 1 | . . . 1 . Data Loss (minor) 1 | . . . 1 . Alerts 1 | . . . 1 . Misdirections 1 | . . . 1 . Weapon Failures 1 | . . . 1 . Overload Shots . | . . . . . Overflow Damage 12 | . . 10 2 . Projectiles 1 | . . . 1 . Explosions 11 | . . 10 1 . Melee . | . . . . . Knockbacks . | . . . . . Impact . | . . . . . Kinetic . | . . . . . Secondary . | . . . . . Self-Inflicted Damage 18 | . . . 15 3 Shots 1 | . . . 1 . Rammed 5 | . . . 1 4 Targets Rammed 5 | . . . 1 4 Kicked . | . . . . . Crushed . | . . . . . Highest Temperature 169 | 27 84 84 117 169 Average Temperature 33 | 10 32 29 24 70 Received Heat Transfer 740 | . 36 318 26 360 Siege Activations . | . . . . . Robots Corrupted . | . . . . . Combat Hostiles . | . . . . . Parts Fried . | . . . . . Impact Corruptions . | . . . . . Robots Melted . | . . . . . Combat Hostiles . | . . . . . Parts Melted 4 | 1 . 3 . . Heat Transferred 1998 | 481 407 592 . 518 Parts Sabotaged . | . . . . . Parts Stolen . | . . . . . Parts Stripped . | . . . . . Power Chain Reactions . | . . . . . Missiles Intercepted . | . . . . . Alert | -11 -10 -9 -9 -8 ------- Run | Scr Mat Mat Min Mat Peak Influence 252 | 35 99 243 125 252 Initial 94 | . 22 41 94 20 Average 62 | 13 46 84 72 74 Maximum Alert Level 1 | . . 1 . 1 Low Security (%) 93 | 100 100 85 100 90 Level 1 6 | . . 14 . 9 Level 2 . | . . . . . Level 3 . | . . . . . Level 4 . | . . . . . Level 5 . | . . . . . High Security . | . . . . . Max Security . | . . . . . Squads Dispatched 4 | . 1 1 1 1 Investigation 1 | . . . . 1 Extermination . | . . . . . Reinforcement 3 | . 1 1 1 . Assault . | . . . . . Garrison . | . . . . . Intercept . | . . . . . Searches Triggered . | . . . . . Construction Impeded 2 | . . 1 1 . Haulers Reinforced . | . . . . . Active Scanning Responses . | . . . . . Cargo Convoy Interrupts . | . . . . . Stealth | -11 -10 -9 -9 -8 --------- Run | Scr Mat Mat Min Mat Distress Signals 6 | . . 2 . 4 Communications Jammed . | . . . . . Distress Signals . | . . . . . Times Spotted 61 | . 4 15 20 22 Peak Tracking Total 19 | . 3 6 19 10 Tactical Retreats 8 | . . 2 2 4 Traps | -11 -10 -9 -9 -8 ------- Run | Scr Mat Mat Min Mat Traps Triggered 2 | . . . . 2 Indirectly . | . . . . . Trap Hack Attempts . | . . . . . Triggered . | . . . . . Disarmed . | . . . . . Reprogrammed . | . . . . . Reused . | . . . . . Traps Extracted . | . . . . . Installed . | . . . . . Triggered . | . . . . . Machines | -11 -10 -9 -9 -8 ---------- Run | Scr Mat Mat Min Mat Machines Disabled 1 | . . . 1 . Max in Single Turn 1 | . . . 1 . Machines Sabotaged . | . . . . . Garrisons Compromised . | . . . . . Overloaded Fab Kills . | . . . . . Hacking | -11 -10 -9 -9 -8 --------- Run | Scr Mat Mat Min Mat Machines Accessed 8 | . 3 2 . 3 Terminals 8 | . 3 2 . 3 Fabricators . | . . . . . Repair Stations . | . . . . . Recycling Units . | . . . . . Scanalyzers . | . . . . . Garrison Access . | . . . . . Total Hacks 23 | . 9 4 . 10 Successful 12 | . 4 1 . 7 Failed 11 | . 5 3 . 3 Catastrophic 2 | . 1 1 . . Database Lockouts . | . . . . . Manual 18 | . 8 4 . 6 Terminals 23 | . 9 4 . 10 Fabricators . | . . . . . Repair Stations . | . . . . . Recycling Units . | . . . . . Scanalyzers . | . . . . . Garrison Access . | . . . . . Terminal Hacks 6 | . 2 . . 4 Terminal Index 2 | . 1 . . 1 Locate Traps 2 | . 1 . . 1 Zone Layout 2 | . . . . 2 Fabricator Hacks . | . . . . . Repair Station Hacks . | . . . . . Recycling Unit Hacks . | . . . . . Scanalyzer . | . . . . . Garrison Access Hacks . | . . . . . Unauthorized Hacks 6 | . 2 1 . 3 Terminals 6 | . 2 1 . 3 Botnet 3 | . 1 1 . 1 Detonate 2 | . 1 . . 1 Sabotage 1 | . . . . 1 Fabricators . | . . . . . Repair Stations . | . . . . . Recycling Units . | . . . . . Scanalyzers . | . . . . . Garrison Access . | . . . . . Data Cores Recovered . | . . . . . Used . | . . . . . Hacking Detections 6 | . 2 2 . 2 Full Trace Events . | . . . . . Feedback Events . | . . . . . Feedback Blocked . | . . . . . Robot Schematics Acquired . | . . . . . Robots Built . | . . . . . Authchips . | . . . . . Time . | . . . . . Total Robot Build Rating . | . . . . . Part Schematics Acquired . | . . . . . Parts Built . | . . . . . Authchips . | . . . . . Time . | . . . . . Total Part Build Rating . | . . . . . Parts Repaired . | . . . . . Time . | . . . . . Parts Recycled . | . . . . . Recycled Matter . | . . . . . Retrieved Matter . | . . . . . Retrieved Components . | . . . . . Parts Scanalyzed . | . . . . . Part Schematics Acquired . | . . . . . Parts Damaged . | . . . . . Bothacking | -11 -10 -9 -9 -8 ------------ Run | Scr Mat Mat Min Mat Used RIF Installer . | . . . . . Robots Hacked . | . . . . . Non-combat . | . . . . . Combat . | . . . . . Robot Hacks Applied . | . . . . . Relay Couplers Released . | . . . . . Fabnet Peak Effective % . | . . . . . Robots Rewired . | . . . . . Allies Hacked . | . . . . . Hacks Repelled . | . . . . . Allies | -11 -10 -9 -9 -8 -------- Run | Scr Mat Mat Min Mat Total Allies . | . . . . . Largest Group . | . . . . . Highest-Rated Group . | . . . . . Highest-Rated Ally . | . . . . . Total Orders . | . . . . . Ally Attacks . | . . . . . Total Damage . | . . . . . Kills . | . . . . . Allies Corrupted . | . . . . . Allies Melted . | . . . . . Intel | -11 -10 -9 -9 -8 ------- Run | Scr Mat Mat Min Mat Robot Analysis Total . | . . . . . Derelict Logs Recovered . | . . . . . Drone Launches . | . . . . . Drone Recoveries . | . . . . . Exploration | -11 -10 -9 -9 -8 ------------- Run | Scr Mat Mat Min Mat Turns Passed 1948 | 347 294 604 330 373 Spaces Moved 1244 | 225 206 173 239 401 Core 496 | 4 . . 97 395 Treads . | . . . . . Legs 620 | 221 206 173 14 6 Wheels 128 | . . . 128 . Hover . | . . . . . Flight . | . . . . . Fastest Speed 50 | 50 120 120 80 50 Average Speed 96 | 118 120 120 96 62 Slowest Speed 200 | 120 120 120 150 200 Overloaded Moves . | . . . . . Propulsion Burnouts . | . . . . . Robots Hopped . | . . . . . Cave-ins Triggered . | . . . . . Exploration Rate (%) 30 | 8 38 32 38 37 Regions Visited 4 Branch Regions 1 Pre-discovered Areas . | . . . . . Known Exits Taken . | . . . . . Unknown Exits Taken 4 | 1 1 1 1 . Scrap Searched 1 | . . . 1 . Spaces Dug 7 | . . . 7 . Terrain Destroyed 23 | . . 15 8 . Melee . | . . . . . Projectile 1 | . . . 1 . AOE 22 | . . 15 7 . Terrain Rammed . | . . . . . Walls Destroyed . | . . . . . Machines Disabled . | . . . . . Actions | -11 -10 -9 -9 -8 --------- Run | Scr Mat Mat Min Mat Total 1834 | 260 235 530 321 488 Wait 441 | . 11 328 57 45 Move 1240 | 224 205 172 238 401 Hop . | . . . . . Pick Up 19 | 8 4 1 1 5 Fast Attach 8 | 6 . 1 1 . Attach 14 | 1 . 1 4 8 Detach 3 | . . . . 3 Swap 12 | . 1 4 7 . Drop 7 | . 4 2 1 . Fire 85 | 21 10 21 11 22 Melee . | . . . . . Ram 5 | . . . 1 4 Kick . | . . . . . Crush . | . . . . . Escape Stasis . | . . . . . Rewire . | . . . . . Trap . | . . . . . Miscellaneous . | . . . . . Route ------- -11/Scrapyard -10/Materials -9/Materials (discovered 2 exits: [*Min x2]) -9/Mines -8/Materials History --------- Turn | Location | Event 6 | -11/Scrapyard | Discovered new exit (range 15) 348 | -11/Scrapyard | Entered Materials 349 | -10/Materials | Build established: Mutant 599 | -10/Materials | Discovered new exit (range 16) 642 | -10/Materials | Entered another Materials area 642 | -9/Materials | Evolved 2 slots: Propulsion x2 1157 | -9/Materials | Discovered new exit (range 16) 1237 | -9/Materials | Discovered new exit (range 6) 1246 | -9/Materials | Entered Mines 1255 | -9/Mines | Discovered new exit (range 12) 1334 | -9/Mines | Assembled infested the area 1339 | -9/Mines | Assisted by a Guerilla fighting off Assembled 1395 | -9/Mines | System corruption reached 10% 1452 | -9/Mines | Lost 10 parts (1p4n1u4w) 1576 | -9/Mines | Entered Materials 1576 | -8/Materials | Evolved 2 slots: Power x1, Utility x1 1762 | -8/Materials | Lost 7 parts (1p3n1u2w) 1799 | -8/Materials | Core integrity fell below 50% 1867 | -8/Materials | Core integrity fell below 20% 1949 | -8/Materials | Destroyed by S-10 Pest with Light Assault Rifle Last Messages --------------- 01749_ K-01 Serf collects debris. 01751_ Triggered Blade Trap. 01751_ Massive razor-sharp blades shoot up from within the floor. 01759_ Acquired Lgt. Nuclear Core. 01761_ Acquired Reflective Plating. 01805_ Acquired Hpw. Shotgun. 01826_ G-47 Trooper destroyed. 01827_ Hpw. Shotgun severed. 01830_ Acquired Adv. Weight Redist. System. 01832_ Connecting with Terminal... >>Force(Sabotage) SYSTEM_VULNERABLE[Fusion Modulator] NETWORK_OVERLOAD_FAIL 01832_ ALERT: Suspicious activity at Terminal M004. Dispatching Investigation squad. 01860_ W-25 Informer sends out distress signal. 01863_ Acquired 58 matter. 01876_ Acquired Imp. Datajack. 01899_ K-01 Serf cleans the Processing Tank. 01932_ W-25 Informer sends out distress signal. Map ----- +----------------------------------------------------+ | ????????????????????????????????????????????????# | | ????????????????????????????????????????????????# | | ????????????????????????????????????????????????# | | ????????????????????????????????????????????????# | | ????????????????????????????????????????????????# | | ????????????????????????????????????????????????# | | ????????????????????????????????????????????????# | | ????????????????????????????????????????????????# | | ????????????????????????????????????????????????# | | ????????????????????????????????????????????????+ | | ????????????????????????????????????????????????# | | ????????????????????????????????????????????????# | | ????????????????????????????????????????????????# | | ???????????????????????????????????????????????# | | ???????????????????????????????????????????????# | | ???????????????????????????????????????????????# | | ???????????????????????????????????????????????# | | ????????????????????????????????######?????????# | | ?????????????????##?????????????# #?????????# | | ????????????????##T######+####### #?????????# | | ????????????????# + #?????????# | | ???????????????## # #?????????# | | ???????????????#" + #?????????# | | ???????????????#T=* ### #?????????# | | ???????????????#"=* #?# #?????????# | | ???????????????##= @ #?# #?????????# | | ????????????????# !! # #???????### | | ???????????o k ! ##+########### | | ??????????T ss s | | ?????????? ############## | | ???????????* ##########+### #????????????#### | | ??????????????????????????#### #?????????????? | | ?????????????????????????????? #???????????? | | ?????????????????????????????? #?????????? | | ?????????????????????????????? #?????????# | | ?????????????????????????????? #?????????# [ == | | ?????????????????????????????? #?????????# =! | | ?????????????????????????????? ?????????# =! | | ?????????????????????????????????????????## | | ??????????????????????????????????????????####### | | ????????????????????????????????????????????????? | | ????????????????????????????????????????????????? | | ????????????????????????????????????????????????? | | ????????????????????????????????????????????????? | | ????????????????????????????????????????????????? | | ????????????????????????????????????????????????? | | ????????????????????????????????????????????????? | | ????????????????????????????????????????????????? | | ????????????????????????????????????????????????? | | ????????????????????????????????????????????????? | +----------------------------------------------------+ Best States ------------- Heat Dissipation 31 Energy Generation 14 Energy Capacity 265 Matter Stores 300 Matter Capacity 300 Sight Range 16 Terrain Scan Range 16 Terrain Scan Density 10 Armor Coverage 150 Resistance: TH 10 Evasion (%) 55 Item Schematics ----------------- None Robot Schematics ------------------ None Fabricated ------------ Nothing Alien Tech Used ----------------- None Achievements -------------- None Challenges ------------ None Game ------ Seed MappingFissionMultirail Manual? 0 Play Time 00:23:59 Cumulative 141.5 hours Start 2022.12.06 @ 15:21:32 End 2022.12.06 @ 15:47:05 Sessions 1 Manual Loads 0 Difficulty Rogue Special Mode None Game No. 220 Rogue 220 Adventurer 0 Explorer 0 Win Type - Total 0 Types 0/0/0/0/0/0/0/0/0 Lore% 50 Gallery% 54 Achievement% 37 Wizard Run 0 Options --------- ASCII 0 Keyboard 0 Movement Mouse Keybinds 0 Fullscreen 1 Font 12/Smallcaps Map View 83x54 Tactical HUD 1 Map Filters NONE Filters NONE Steam 1 RUN: dbde66c3-6f2f-47b4-bd7b-7d1e5ca13d4b